bitfinex-derivatives/quotes_BNBF0:USTF0_20250715
["timestamp","ask_amount","ask_price","bid_price","bid_amount"]
[1752563907101,0.98387855,681.1,680.2,0.25565114]
[1752563910402,0.98387855,681.09,680.2,0.25565114]
[1752563911205,0.98387855,681.08,680.2,0.25565114]
[1752563912903,0.98387855,681.01,680.2,0.25565114]
[1752563913303,0.98387855,681.02,680.2,0.25565114]
[1752563915101,1.30965,681.15,680.2,0.25565114]
[1752563915300,0.98409636,681.02,680.2,0.25565114]
[1752563916608,0.98409636,681.03,680.2,0.25565114]
[1752563917308,0.98409636,681.02,680.2,0.25565114]
[1752563917909,0.98409636,681.06,680.2,0.25565114]
[1752563918109,0.98409636,681.05,680.2,0.25565114]
[1752563920110,0.98409636,681.04,680.2,1.24044943]
[1752563921210,0.98409636,681.04,680.21,0.98479829]
[1752563921506,0.98409636,681.03,680.21,0.98479829]
[1752563922210,0.98409636,681.04,680.23,0.98479829]
[1752563922411,0.98409636,681.03,680.23,0.98479829]
[1752563923212,1.1067971,681.18,680.24,0.98479829]
[1752563923213,0.98409636,681.02,680.24,0.98479829]
[1752563923811,0.98409636,681.02,680.25,0.98479829]
[1752563924110,0.98409636,681.02,680.26,0.98479829]
[1752563924413,0.98409636,680.96,680.3,0.98479829]
[1752563926114,0.98409636,680.95,680.31,0.98479829]
[1752563927214,0.98409636,680.94,680.32,0.98479829]
[1752563928212,0.98409636,680.94,680.33,0.98479829]
[1752563929210,0.98409636,680.93,680.33,0.98479829]
[1752563930310,0.98409636,680.93,680.34,0.98479829]
[1752563930513,0.98409636,680.92,680.34,0.98479829]
[1752563931110,0.98409636,680.91,680.35,0.98479829]
[1752563931510,0.98409636,680.9,680.36,0.98479829]
[1752563932114,0.98409636,680.98,680.45,0.98479829]
[1752563933415,0.98409636,680.97,680.46,0.98479829]
[1752563933615,0.98409636,681.02,680.42,0.98479829]
[1752563933916,0.98409636,681.02,680.43,0.98479829]
[1752563937217,0.98409636,681.04,680.45,0.98479829]
[1752563938218,0.98409636,681.04,680.44,0.98479829]
[1752563938713,0.98409636,681.04,680.45,0.98479829]
[1752563939113,0.98409636,681.04,680.44,0.98479829]
[1752563939318,0.98409636,681.05,680.46,0.98479829]
[1752563941116,1.30965,681.21,680.3,1.3114796]
[1752563941321,0.98867524,681.05,680.46,0.98883518]
[1752563942224,0.98867524,681.05,680.45,0.98883518]
[1752563943521,0.98867524,681.02,680.48,0.98883518]
[1752563944225,0.98867524,681.16,680.38,0.98883518]
[1752563944426,2.10016524,681.15,680.38,0.98883518]
[1752563944628,1.11149,681.14,680.38,0.98883518]
[1752563945822,1.11149,681.13,680.38,0.98883518]
[1752563946022,1.11149,681.12,680.38,0.98883518]
[1752563946222,1.11149,681.11,680.38,0.98883518]
[1752563946424,1.11149,681.1,680.38,0.98883518]
[1752563946625,1.11149,681.09,680.38,0.98883518]
[1752563946920,1.11149,681.08,680.38,0.98883518]
[1752563947122,1.11149,681.07,680.38,0.98883518]
[1752563947324,0.98867524,681.16,680.38,0.98883518]
[1752563947521,1.1114759,681.15,680.38,0.98883518]
[1752563947725,0.98867524,681.1,680.32,0.98883518]
[1752563948122,1.1115272,681.09,680.32,0.98883518]
[1752563948624,2.10020244,681.09,680.31,0.98883518]
[1752563948826,2.10020244,681.08,680.3,0.98883518]
[1752563949020,1.1115272,681.07,680.3,0.98883518]
[1752563949324,0.98867524,681.04,680.26,0.98883518]
[1752563951731,0.98867524,681.03,680.27,0.98883518]
[1752563953530,0.2555751,681.2,680.2,0.25565114]
[1752563953830,0.98855382,681.03,680.27,0.98902029]
[1752563954026,1.1116418,681.02,680.33,0.98902029]
[1752563954225,0.98855382,680.94,680.33,0.98902029]
[1752563954729,0.98858572,680.94,680.33,0.98905164]
[1752563955529,0.98858572,680.93,680.34,0.98905164]
[1752563956330,0.98858572,680.92,680.34,0.98905164]
[1752563956525,0.98858572,680.93,680.35,0.98905164]
[1752563956725,0.98858572,680.89,680.37,0.98905164]
[1752563957228,0.98858572,680.91,680.39,0.98905164]
[1752563957729,0.25556571,681.27,680.47,0.98905164]
[1752563957730,0.98858572,680.99,680.47,0.98905164]
[1752563957930,0.98858572,681.0,680.46,0.98905164]
[1752563958130,0.25556571,681.27,680.45,0.98905164]
[1752563958131,0.98858572,681.02,680.45,0.98905164]
[1752563958428,0.98858572,681.01,680.45,0.98905164]
[1752563958729,0.98858572,681.02,680.45,0.98905164]
[1752563959432,0.98858572,681.02,680.44,0.98905164]
[1752563963130,0.98858572,681.04,680.43,0.98905164]
[1752563963534,0.98858572,681.03,680.41,0.98905164]
[1752563963734,0.98858572,680.96,680.34,0.98905164]
[1752563965136,0.98858572,680.95,680.35,0.98905164]
[1752563965534,0.98858572,680.96,680.35,0.98905164]
[1752563966237,0.98858572,680.95,680.35,0.98905164]
[1752563966738,0.98858572,680.94,680.34,0.98905164]
[1752563967938,0.98858572,680.95,680.34,0.98905164]
[1752563970538,0.98858572,680.94,680.35,0.98905164]
[1752563971435,0.98858572,680.93,680.34,0.98905164]
[1752563972138,0.98858572,680.93,680.35,0.98905164]
[1752563972735,0.98858572,680.87,680.28,0.98905164]
[1752563974943,0.98858572,680.83,680.3,0.98905164]
[1752563975442,0.98858572,680.84,680.3,0.98905164]
[1752563976243,0.98858572,680.88,680.27,0.98905164]
[1752563977043,0.98858572,680.84,680.22,0.98905164]
[1752563977543,0.98858572,680.84,680.21,0.98905164]
[1752563978042,0.98858572,680.83,680.21,0.98905164]
[1752563978239,0.98858572,680.84,680.2,1.24470278]
[1752563979942,0.98858572,680.81,680.2,0.25565114]
[1752563980243,0.98858572,680.82,680.2,0.25565114]
[1752563982639,1.30965,680.98,680.2,0.25565114]
[1752563982944,0.98707617,680.84,680.2,0.25565114]
[1752563984142,0.98707617,680.85,680.2,0.25565114]
[1752563985947,0.98707617,680.86,680.2,0.25565114]
[1752563987851,0.98707617,680.89,680.2,0.25565114]
[1752563990449,0.98707617,680.9,680.2,0.25565114]
[1752563992851,0.98707617,680.88,680.2,0.25565114]
[1752563995052,0.98707617,680.89,680.2,0.25565114]
[1752563995959,0.25556571,681.27,680.2,0.25565114]
[1752563995960,0.98707617,680.85,680.2,0.25565114]
[1752563997257,0.98707617,680.87,680.2,0.25565114]
[1752563997460,0.98707617,680.9,680.2,0.25565114]
[1752563998661,0.98707617,680.89,680.2,0.25565114]
[1752563999158,0.98707617,680.9,680.2,0.25565114]
[1752564000157,0.98707617,680.89,680.2,0.25565114]
[1752564001068,0.98707617,680.9,680.2,0.25565114]
[1752564001467,0.98707617,680.89,680.2,0.25565114]
[1752564002064,0.98707617,680.92,680.2,0.25565114]
[1752564003867,0.98707617,680.92,680.2,1.24386468]
[1752564004066,0.98707617,680.93,680.2,1.24386468]
[1752564004272,0.98707617,680.92,680.2,1.24386468]
[1752564005267,0.98707617,680.92,680.21,0.98821354]
[1752564006071,0.25556571,681.27,680.22,0.98821354]
[1752564006072,0.98707617,680.93,680.22,0.98821354]
[1752564006267,0.98707617,680.93,680.23,0.98821354]
[1752564006567,0.98707617,680.88,680.26,0.98821354]
[1752564007969,0.98707617,680.89,680.26,0.98821354]
[1752564008169,0.98707617,680.9,680.25,0.98821354]
[1752564008771,0.98707617,680.94,680.3,0.98821354]
[1752564010176,0.98707617,680.95,680.3,0.98821354]
[1752564011379,0.98707617,680.96,680.29,0.98821354]
[1752564012274,0.98707617,680.98,680.27,0.98821354]
[1752564014083,0.98707617,680.98,680.28,0.98821354]
[1752564014282,0.98707617,681.0,680.27,0.98821354]
[1752564015782,0.98707617,681.03,680.3,0.98821354]
[1752564018085,0.98707617,681.02,680.31,0.98821354]
[1752564019382,0.98707617,680.98,680.33,0.98821354]
[1752564020082,0.98707617,680.99,680.33,0.98821354]
[1752564021083,0.98707617,681.02,680.31,0.98821354]
[1752564021388,0.98707617,681.01,680.32,0.98821354]
[1752564021584,0.98707617,681.02,680.31,0.98821354]
[1752564021983,1.1116762,681.19,680.31,0.98821354]
[1752564022288,1.1116762,681.19,680.2,0.25565114]
[1752564022588,1.1116762,681.19,680.14,1.3114796]
[1752564022589,1.1116762,681.19,679.96,1.9672194]
[1752564022785,1.1116762,681.18,680.29,0.25555258]
[1752564023089,1.1116762,681.17,680.29,0.25555258]
[1752564023286,1.1116762,681.16,680.29,0.25555258]
[1752564023589,1.1116762,681.15,680.29,0.25555258]
[1752564023886,1.1116762,681.14,680.29,0.25555258]
[1752564024084,1.3169949,681.18,680.29,0.25555258]
[1752564024786,0.98774624,681.01,680.32,0.98842096]
[1752564025286,1.3169949,681.18,680.29,0.25555258]
[1752564026487,0.2555507,681.41,680.29,0.25555258]
[1752564033594,1.1093994,681.4,680.29,0.25555258]
[1752564033790,1.1093994,681.39,680.29,0.25555258]
[1752564033994,1.1093994,681.38,680.29,0.25555258]
[1752564034194,1.1093994,681.37,680.29,0.25555258]
[1752564034493,1.1093994,681.36,680.29,0.25555258]
[1752564034693,0.2555507,681.41,680.29,0.25555258]
[1752564034900,0.98593668,680.97,680.29,0.25555258]
[1752564035494,0.98593668,680.98,680.29,0.25555258]
[1752564036196,0.98593668,680.99,680.29,0.25555258]
[1752564036795,0.98593668,681.01,680.29,0.25555258]
[1752564037095,0.2555507,681.41,680.29,0.25555258]
[1752564037096,0.98593668,681.1,680.29,0.25555258]
[1752564038198,0.98593668,681.21,680.3,0.98683725]
[1752564038394,0.98593668,681.21,680.29,1.24238983]
[1752564040497,0.98593668,681.2,680.3,0.98683725]
[1752564041295,0.98593668,681.21,680.29,1.24238983]
[1752564043497,0.98593668,681.19,680.31,0.98683725]
[1752564046795,0.98593668,681.13,680.35,0.98683725]
[1752564047000,0.98593668,681.13,680.36,0.98683725]
[1752564047200,0.98593668,681.13,680.37,0.98683725]
[1752564048598,0.98593668,681.12,680.37,0.98683725]
[1752564050003,0.98593668,681.16,680.41,0.98683725]
[1752564050404,0.98593668,681.17,680.41,0.98683725]
[1752564051104,0.98593668,681.18,680.4,0.98683725]
[1752564051303,0.98593668,681.17,680.4,0.98683725]
[1752564053309,0.98593668,681.18,680.4,0.98683725]
[1752564054204,0.98593668,681.17,680.41,0.98683725]
[1752564054410,0.98593668,681.18,680.41,0.98683725]
[1752564054610,0.98593668,681.17,680.41,0.98683725]
[1752564056319,0.98593668,681.17,680.42,0.98683725]
[1752564056517,0.98593668,681.19,680.4,0.98683725]
[1752564057116,0.98593668,681.19,680.41,0.98683725]
[1752564059220,0.98593668,681.18,680.41,0.98683725]
[1752564059820,0.98593668,681.18,680.42,0.98683725]
[1752564060521,0.98638897,681.18,680.42,0.98712667]
[1752564061020,0.98638897,681.18,680.43,0.98712667]
[1752564061322,0.98638897,681.17,680.43,0.98712667]
[1752564061516,0.98638897,681.16,680.43,0.98712667]
[1752564063016,1.1088365,681.31,680.43,0.98712667]
[1752564063017,0.98638897,681.15,680.43,0.98712667]
[1752564063422,0.98638897,681.14,680.44,0.98712667]
[1752564063718,0.98638897,681.15,680.43,0.98712667]
[1752564064323,0.98638897,681.13,680.41,0.98712667]
[1752564065323,0.98638897,681.12,680.41,0.98712667]
[1752564065824,0.98638897,681.13,680.41,0.98712667]
[1752564066420,0.98638897,681.16,680.29,0.25555258]
[1752564071728,0.98638897,681.1,680.29,1.24267925]
[1752564072226,0.98638897,681.09,680.3,0.98712667]
[1752564074432,1.1099666,681.2,680.3,0.98712667]
[1752564074630,1.1099666,681.19,680.3,0.98712667]
[1752564074940,1.1099666,681.18,680.37,0.98712667]
[1752564075136,0.98638897,681.32,680.37,0.98712667]
[1752564075634,0.98638897,681.31,680.37,0.98712667]
[1752564076336,0.98638897,681.19,680.45,0.98712667]
[1752564076535,0.98638897,681.17,680.43,0.98712667]
[1752564077435,0.98638897,681.11,680.41,0.98712667]
[1752564078437,0.98638897,681.1,680.42,0.98712667]
[1752564079139,0.98638897,681.06,680.45,0.98712667]
[1752564079341,0.98638897,681.05,680.45,0.98712667]
[1752564079546,0.98638897,681.06,680.45,0.98712667]
[1752564080245,0.98638897,681.05,680.45,0.98712667]
[1752564080538,0.98638897,681.06,680.45,0.98712667]
[1752564081846,0.98638897,681.08,680.43,0.98712667]
[1752564084546,0.98638897,681.08,680.44,0.98712667]
[1752564085847,0.98638897,681.11,680.42,0.98712667]
[1752564086345,0.98638897,681.1,680.42,0.98712667]
[1752564087846,0.98638897,681.11,680.41,0.98712667]
[1752564088244,0.98638897,681.11,680.42,0.98712667]
[1752564088749,0.98638897,681.13,680.44,0.98712667]
[1752564089648,0.98638897,681.11,680.45,0.98712667]
[1752564091046,0.98638897,681.12,680.45,0.98712667]
[1752564092449,0.98638897,681.11,680.44,0.98712667]
[1752564094350,0.98638897,681.1,680.45,0.98712667]
[1752564095447,0.98638897,681.08,680.47,0.98712667]
[1752564095846,0.98638897,681.07,680.47,0.98712667]
[1752564096247,0.98638897,681.06,680.48,0.98712667]
[1752564096450,0.98638897,681.05,680.48,0.98712667]
[1752564096850,0.98638897,681.02,680.5,0.98712667]
[1752564097051,0.98638897,681.02,680.51,0.98712667]
[1752564097746,0.98638897,681.01,680.51,0.98712667]
[1752564097949,0.98638897,681.01,680.29,0.25555258]
[1752564097950,0.98638897,680.99,680.49,0.98712667]
[1752564098646,0.98638897,680.99,680.48,0.98712667]
[1752564099545,0.98638897,680.99,680.49,0.98712667]
[1752564100250,0.98638897,680.99,680.48,0.98712667]
[1752564100449,0.98638897,680.99,680.49,0.98712667]
[1752564100950,0.98638897,681.0,680.49,0.98712667]
[1752564101451,0.98638897,680.99,680.49,0.98712667]
[1752564101846,0.98638897,681.0,680.49,0.98712667]
[1752564104150,0.98638897,680.99,680.49,0.98712667]
[1752564104353,0.98638897,681.0,680.49,0.98712667]
[1752564104649,0.98638897,680.99,680.48,0.98712667]
[1752564106149,0.98638897,680.98,680.47,0.98712667]
[1752564106554,0.98638897,680.98,680.48,0.98712667]
[1752564107854,0.98638897,680.99,680.47,0.98712667]
[1752564108053,0.98638897,681.0,680.47,0.98712667]
[1752564108256,0.98638897,680.97,680.43,0.98712667]
[1752564108659,0.98638897,680.96,680.44,0.98712667]
[1752564114957,0.2555507,681.41,680.29,0.25555258]
[1752564114958,0.98638897,681.03,680.29,0.25555258]
[1752564115858,0.98638897,681.04,680.29,0.25555258]
[1752564118762,0.2555507,681.41,680.3,0.98712667]
[1752564118763,0.98638897,681.07,680.3,0.98712667]
[1752564118963,0.98638897,681.07,680.29,1.24267925]
[1752564123662,0.98638897,681.08,680.29,1.24267925]
[1752564124561,0.98638897,681.03,680.35,0.98712667]
[1752564124761,0.98638897,681.02,680.36,0.98712667]
[1752564125159,0.98638897,681.01,680.36,0.98712667]
[1752564125365,0.98638897,681.02,680.36,0.98712667]
[1752564128366,0.98638897,681.01,680.36,0.98712667]
[1752564128762,0.98638897,681.01,680.37,0.98712667]
[1752564130765,0.98638897,681.09,680.31,0.98712667]
[1752564131171,0.98638897,681.08,680.32,0.98712667]
[1752564133776,0.98638897,681.08,680.29,0.25555258]
[1752564133777,0.98638897,681.2,680.4,0.98712667]
[1752564134177,1.1120698,681.19,680.4,0.98712667]
[1752564134977,0.98638897,681.19,680.4,0.98712667]
[1752564135472,0.98638897,681.19,680.41,0.98712667]
[1752564135673,0.98638897,681.18,680.41,0.98712667]
[1752564136177,0.98638897,681.16,680.46,0.98712667]
[1752564136377,0.98638897,681.12,680.49,0.98712667]
[1752564137675,0.98638897,681.09,680.51,0.98712667]
[1752564138477,0.98638897,681.1,680.5,0.98712667]
[1752564140778,0.98638897,681.12,680.49,0.98712667]
[1752564140982,0.98638897,681.13,680.51,0.98712667]
[1752564141178,0.98638897,681.14,680.51,0.98712667]
[1752564142178,0.98638897,681.13,680.51,0.98712667]
[1752564143383,0.98638897,681.12,680.52,0.98712667]
[1752564144085,0.98638897,681.11,680.53,0.98712667]
[1752564144480,1.1124851,681.22,680.37,1.3161688]
[1752564144481,0.98638897,681.12,680.52,0.98712667]
[1752564147286,0.98638897,681.12,680.37,1.3161688]
[1752564147486,1.1123408,681.18,680.37,1.3161688]
[1752564147690,0.2555507,681.41,680.29,0.25555258]
[1752564147888,0.98858903,681.12,680.52,0.98836667]
[1752564148388,0.98858903,681.12,680.51,0.98836667]
[1752564148691,0.2555507,681.41,680.29,0.25555258]
[1752564148893,0.98857273,681.11,680.52,0.9883512]
[1752564149588,0.98857273,681.12,680.51,0.9883512]
[1752564150593,0.98857273,681.15,680.5,0.9883512]
[1752564151189,0.98857273,681.2,680.55,0.9883512]
[1752564151394,0.98857273,681.2,680.54,0.9883512]
[1752564152593,0.98857273,681.21,680.54,0.9883512]
[1752564153391,0.98857273,681.21,680.53,0.9883512]
[1752564153594,0.98857273,681.22,680.54,0.9883512]
[1752564155794,0.98857273,681.22,680.53,0.9883512]
[1752564156295,0.98857273,681.22,680.54,0.9883512]
[1752564156496,0.98857273,681.16,680.57,0.9883512]
[1752564157090,0.98857273,681.24,680.52,0.9883512]
[1752564157991,0.98857273,681.25,680.51,0.9883512]
[1752564158794,0.98857273,681.3,680.56,0.9883512]
[1752564158998,1.1115277,681.29,680.56,0.9883512]
[1752564159499,0.98857273,681.3,680.55,0.9883512]
[1752564160299,0.98857273,681.34,680.58,0.9883512]
[1752564161497,0.98857273,681.35,680.57,0.9883512]
[1752564163100,0.98857273,681.35,680.56,0.9883512]
[1752564163497,0.98857273,681.36,680.56,0.9883512]
[1752564164197,0.98857273,681.36,680.55,0.9883512]
[1752564165201,0.98857273,681.37,680.55,0.9883512]
[1752564165500,0.98857273,681.37,680.54,0.9883512]
[1752564165701,0.98857273,681.31,680.58,0.9883512]
[1752564166400,0.98857273,681.31,680.57,0.9883512]
[1752564167096,0.98857273,681.32,680.57,0.9883512]
[1752564168000,0.98857273,681.31,680.57,0.9883512]
[1752564168498,0.98857273,681.32,680.57,0.9883512]
[1752564168895,0.98857273,681.34,680.55,0.9883512]
[1752564169502,0.98857273,681.36,680.54,0.9883512]
[1752564170000,0.25546628,681.56,680.54,0.9883512]
[1752564170001,0.98857273,681.35,680.54,0.9883512]
[1752564170200,0.98857273,681.34,680.55,0.9883512]
[1752564170401,0.98857273,681.35,680.54,0.9883512]
[1752564172804,0.98857273,681.35,680.53,0.9883512]
[1752564173003,0.98857273,681.36,680.56,0.9883512]
[1752564173499,0.98857273,681.35,680.54,0.9883512]
[1752564173704,0.98857273,681.29,680.52,0.9883512]
[1752564174004,0.98857273,681.28,680.5,0.9883512]
[1752564176201,0.98857273,681.27,680.51,0.9883512]
[1752564178202,0.98857273,681.27,680.52,0.9883512]
[1752564178501,0.98857273,681.24,680.52,0.9883512]
[1752564178702,0.98857273,681.24,680.54,0.9883512]
[1752564179704,0.98857273,681.25,680.56,0.9883512]
[1752564180410,0.98857273,681.26,680.55,0.9883512]
[1752564181612,0.98857273,681.26,680.56,0.9883512]
[1752564182114,0.98857273,681.25,680.56,0.9883512]
[1752564182511,0.98857273,681.26,680.55,0.9883512]
[1752564182711,0.98857273,681.23,680.52,0.9883512]
[1752564183415,0.98857273,681.22,680.52,0.9883512]
[1752564183709,0.98673649,681.22,680.38,1.3178016]
[1752564183916,0.98673649,681.22,680.52,0.98656575]
[1752564184416,0.98673649,681.23,680.52,0.98656575]
[1752564184914,0.98673649,681.24,680.52,0.98656575]
[1752564185611,0.98673649,681.23,680.52,0.98656575]
[1752564186415,0.98673649,681.23,680.53,0.98656575]
[1752564186911,0.98673649,681.31,680.47,0.98656575]
[1752564187312,0.98673649,681.3,680.48,0.98656575]
[1752564188613,0.98673649,681.3,680.49,0.98656575]
[1752564189319,0.98673649,681.29,680.49,0.98656575]
[1752564189517,0.98673649,681.29,680.5,0.98656575]
[1752564190418,0.98673649,681.28,680.5,0.98656575]
[1752564190815,0.98673649,681.23,680.46,0.98656575]
[1752564191018,0.98673649,681.24,680.45,0.98656575]
[1752564191518,0.98673649,681.14,680.52,0.98656575]
[1752564192521,0.98673649,681.13,680.53,0.98656575]
[1752564193316,0.98673649,681.13,680.54,0.98656575]
[1752564193920,0.98673649,681.13,680.53,0.98656575]
[1752564194117,0.98673649,681.14,680.53,0.98656575]
[1752564195027,0.98673649,681.12,680.51,0.98656575]
[1752564195723,0.25546628,681.56,680.35,0.98656575]
[1752564195724,0.98673649,681.37,680.35,0.98656575]
[1752564198927,0.98673649,681.24,680.29,0.25555258]
[1752564199123,0.98673649,681.23,680.29,0.25555258]
[1752564199323,0.98673649,681.21,680.29,0.25555258]
[1752564200029,0.98673649,681.16,680.29,0.25555258]
[1752564200330,0.98673649,681.15,680.29,0.25555258]
[1752564201526,0.98673649,681.16,680.29,0.25555258]
[1752564201827,0.98673649,681.15,680.29,0.25555258]
[1752564202631,0.98673649,681.16,680.29,0.25555258]
[1752564203032,0.98673649,681.05,680.33,0.98656575]
[1752564203431,0.98673649,681.03,680.34,0.98656575]
[1752564203632,0.98673649,680.98,680.37,0.98656575]
[1752564204531,0.98673649,680.99,680.37,0.98656575]
[1752564205429,0.98673649,680.99,680.36,0.98656575]
[1752564206432,0.98673649,681.0,680.36,0.98656575]
[1752564206933,0.98673649,680.99,680.36,0.98656575]
[1752564208435,0.98673649,680.99,680.35,0.98656575]
[1752564208635,0.98673649,681.0,680.35,0.98656575]
[1752564209235,0.98673649,680.99,680.35,0.98656575]
[1752564209437,0.98673649,681.0,680.35,0.98656575]
[1752564209937,0.98673649,680.99,680.35,0.98656575]
[1752564211132,0.98673649,680.99,680.34,0.98656575]
[1752564211337,0.98673649,681.0,680.34,0.98656575]
[1752564212337,0.98673649,681.01,680.33,0.98656575]
[1752564212838,0.98673649,681.0,680.33,0.98656575]
[1752564214434,0.98673649,681.01,680.33,0.98656575]
[1752564214937,0.98673649,681.0,680.33,0.98656575]
[1752564215538,0.98673649,681.01,680.32,0.98656575]
[1752564217140,0.98673649,681.02,680.31,0.98656575]
[1752564220141,0.98673649,681.02,680.3,0.98656575]
[1752564220742,0.98673649,681.02,680.31,0.98656575]
[1752564222147,0.98673649,681.01,680.31,0.98656575]
[1752564223046,0.98673649,681.01,680.36,0.2555507]
[1752564224346,0.98673649,681.02,680.36,0.2555507]
[1752564224751,0.98673649,681.01,680.36,0.2555507]
[1752564225652,0.98673649,681.02,680.36,0.2555507]
[1752564227552,0.98673649,681.01,680.36,0.2555507]
[1752564227851,0.98673649,681.02,680.36,0.2555507]
[1752564229455,0.98673649,681.03,680.36,0.2555507]
[1752564230750,0.98673649,681.18,680.36,0.2555507]
[1752564231350,0.98673649,681.2,680.36,0.2555507]
[1752564232553,0.98673649,681.19,680.36,0.2555507]
[1752564237457,0.98673649,681.18,680.36,0.2555507]
[1752564240756,0.98673649,681.11,680.36,0.2555507]
[1752564240956,0.98673649,681.06,680.36,0.2555507]
[1752564241158,0.98673649,681.02,680.36,0.2555507]
[1752564241359,0.98673649,681.0,680.36,0.2555507]
[1752564242463,0.98673649,680.99,680.36,1.24211645]
[1752564242762,0.98673649,680.99,680.36,0.2555507]
[1752564242963,0.98673649,680.99,680.36,1.24211645]
[1752564244262,0.98673649,681.0,680.36,0.2555507]
[1752564244567,0.98673649,680.99,680.36,1.24211645]
[1752564244962,0.98673649,681.01,680.36,0.2555507]
[1752564245465,0.98673649,681.0,680.36,0.2555507]
[1752564247063,0.98673649,680.99,680.36,0.2555507]
[1752564247761,0.98673649,681.0,680.36,0.2555507]
[1752564248566,0.98673649,680.99,680.36,1.24211645]
[1752564249367,0.98673649,680.98,680.36,1.24211645]
[1752564250462,0.98673649,680.98,680.37,0.98656575]
[1752564251470,0.98673649,680.97,680.37,0.98656575]
[1752564251969,0.98673649,680.98,680.36,1.24211645]
[1752564252166,0.98673649,680.96,680.36,0.2555507]
[1752564252570,0.98673649,680.91,680.36,0.2555507]
[1752564252970,0.98673649,680.89,680.36,0.2555507]
[1752564253266,0.98673649,680.88,680.36,0.2555507]
[1752564253470,0.98673649,680.87,680.36,0.2555507]
[1752564255567,0.98673649,680.86,680.36,0.2555507]
[1752564256371,0.98673649,680.9,680.36,0.2555507]
[1752564257468,0.98673649,680.89,680.36,0.2555507]
[1752564258076,0.98673649,680.88,680.36,0.2555507]
[1752564258274,0.98673649,680.89,680.36,0.2555507]
[1752564258574,0.98673649,680.88,680.36,0.2555507]
[1752564262674,0.98673649,680.89,680.42,0.98656575]
[1752564263073,0.98673649,680.9,680.42,0.98656575]
[1752564263680,0.98673649,680.91,680.43,0.98656575]
[1752564264287,0.98673649,680.9,680.43,0.98656575]
[1752564266086,0.98673649,680.91,680.44,0.98656575]
[1752564266390,0.98673649,680.9,680.44,0.98656575]
[1752564266990,0.98673649,680.89,680.44,0.98656575]
[1752564271390,0.98673649,680.9,680.44,0.98656575]
[1752564271892,0.98673649,680.94,680.41,0.98656575]
[1752564272192,0.98673649,681.0,680.48,0.98656575]
[1752564272491,0.98673649,681.01,680.47,0.98656575]
[1752564274590,0.98673649,681.02,680.47,0.98656575]
[1752564275193,0.98673649,681.03,680.46,0.98656575]
[1752564275393,0.98673649,681.07,680.5,0.98656575]
[1752564275792,0.98673649,681.08,680.51,0.98656575]
[1752564276190,0.98673649,681.05,680.53,0.98656575]
[1752564276391,0.98673649,681.07,680.55,0.98656575]
[1752564277296,0.98673649,681.08,680.54,0.98656575]
[1752564277594,0.98895641,681.08,680.54,0.98793935]
[1752564278496,0.98895641,681.09,680.54,0.98793935]
[1752564278695,0.98895641,681.09,680.53,0.98793935]
[1752564279095,0.98895641,681.11,680.52,0.98793935]
[1752564279292,0.98895641,681.13,680.5,0.98793935]
[1752564280195,0.98895641,681.14,680.5,0.98793935]
[1752564281195,0.98895641,681.14,680.49,0.98793935]
[1752564282095,0.98895641,681.14,680.5,0.98793935]
[1752564282398,0.25546628,681.56,680.52,0.98793935]
[1752564282399,0.98895641,681.17,680.52,0.98793935]
[1752564283496,0.98895641,681.18,680.52,0.98793935]
[1752564286192,0.98895641,681.18,680.51,0.98793935]
[1752564287295,0.98895641,681.19,680.51,0.98793935]
[1752564288997,0.98895641,681.17,680.52,0.98793935]
[1752564289196,0.98895641,681.17,680.36,0.2555507]
[1752564289197,0.98895641,681.14,680.54,0.98793935]
[1752564289396,0.98895641,681.14,680.53,0.98793935]
[1752564289695,0.98895641,681.15,680.53,0.98793935]
[1752564289991,1.9718733,681.39,680.36,0.2555507]
[1752564289992,0.98895641,681.14,680.54,0.98793935]
[1752564290395,0.98895641,681.16,680.52,0.98793935]
[1752564290596,0.98895641,681.19,680.51,0.98793935]
[1752564290792,0.98895641,681.2,680.5,0.98793935]
[1752564291297,0.98895641,681.21,680.5,0.98793935]
[1752564291696,0.98895641,681.22,680.5,0.98793935]
[1752564292097,0.98895641,681.23,680.52,0.98793935]
[1752564292297,0.98895641,681.23,680.51,0.98793935]
[1752564294294,0.98895641,681.23,680.5,0.98793935]
[1752564294498,0.98895641,681.26,680.49,0.98793935]
[1752564295397,0.98895641,681.26,680.48,0.98793935]
[1752564295998,0.98895641,681.26,680.49,0.98793935]
[1752564296199,0.98895641,681.26,680.48,0.98793935]
[1752564297401,0.98895641,681.27,680.48,0.98793935]
[1752564298201,0.98895641,681.27,680.47,0.98793935]
[1752564300399,0.98895641,681.26,680.48,0.98793935]
[1752564300598,0.98895641,681.25,680.48,0.98793935]
[1752564302906,0.98895641,681.26,680.48,0.98793935]
[1752564303102,0.98895641,681.26,680.47,0.98793935]
[1752564304406,0.98895641,681.24,680.49,0.98793935]
[1752564305106,0.98895641,681.25,680.48,0.98793935]
[1752564305305,0.98895641,681.24,680.48,0.98793935]
[1752564305803,0.98895641,681.25,680.48,0.98793935]
[1752564306001,0.98895641,681.26,680.47,0.98793935]
[1752564306605,0.98895641,681.25,680.47,0.98793935]
[1752564306805,0.98895641,681.24,680.47,0.98793935]
[1752564307511,0.98895641,681.24,680.46,0.98793935]
[1752564308211,0.98895641,681.24,680.36,0.2555507]
[1752564308212,0.98895641,681.2,680.42,0.98793935]